Body Name,Body,Service Level,Expense Type,Expense Code,Narrative,Date,Transaction Number,Amount,Capital and Revenue,Supplier Name,Supplier ID
South Ribble Borough Council,http://statistics.data.gov.uk/id/local-authority/30UE,Capital,Cap Contract Payment,C230,Edging and path works at bent lane,02/08/2023,0000490972,"6,246.50",Revenue,A & G Landscapes & Groundworks LTD,0
South Ribble Borough Council,http://statistics.data.gov.uk/id/local-authority/30UE,Capital,Cap Contract Payment,C230,LABOUR,02/08/2023,0000490972,"1,500.00",Revenue,A & G Landscapes & Groundworks LTD,0
South Ribble Borough Council,http://statistics.data.gov.uk/id/local-authority/30UE,Tourism,Reactive Repair & Maintenance,2020,"Cleaning of Windows, Gutters inside and outside at Worden Hall as per NAME REDACTED request",02/08/2023,0000491084,505.00,Revenue,A 2 Clean Ltd,0
South Ribble Borough Council,http://statistics.data.gov.uk/id/local-authority/30UE,Street Cleansing,Agency Staff,1121,"NAME REDACTED W/E 14.07.23 - 37.08 hrs, @ 15.30ph",02/08/2023,0000490818,567.32,Revenue,ACE PERSONNEL,0
South Ribble Borough Council,http://statistics.data.gov.uk/id/local-authority/30UE,Street Cleansing,Agency Staff,1121,"NAME REDACTED W/E 21.07.23 - 39 hrs, @ 15.30ph",02/08/2023,0000491022,596.70,Revenue,ACE PERSONNEL,0
South Ribble Borough Council,http://statistics.data.gov.uk/id/local-authority/30UE,Street Cleansing,Agency Staff,1121,"NAME REDACTED W/E 21.07.23 - 38.53 hrs, @ 15.30ph",02/08/2023,0000491022,589.51,Revenue,ACE PERSONNEL,0
South Ribble Borough Council,http://statistics.data.gov.uk/id/local-authority/30UE,Street Cleansing,Agency Staff,1121,"NAME REDACTED W/E 28.07.23 - 39.17 hrs, @ 15.30ph",16/08/2023,0000491250,599.30,Revenue,ACE PERSONNEL,0
South Ribble Borough Council,http://statistics.data.gov.uk/id/local-authority/30UE,Street Cleansing,Agency Staff,1121,"NAME REDACTED W/E 28.07.23 - 36.83hrs, @ 15.30ph",16/08/2023,0000491250,563.50,Revenue,ACE PERSONNEL,0
South Ribble Borough Council,http://statistics.data.gov.uk/id/local-authority/30UE,Street Cleansing,Agency Staff,1121,"NAME REDACTED W/E 28.07.23 - 38.08 hrs, @ 15.30ph",16/08/2023,0000491250,582.62,Revenue,ACE PERSONNEL,0
South Ribble Borough Council,http://statistics.data.gov.uk/id/local-authority/30UE,Street Cleansing,Agency Staff,1121,"NAME REDACTED W/E 04.08.23 - 37.5 hrs, @ 15.30ph",23/08/2023,0000491444,573.75,Revenue,ACE PERSONNEL,0
South Ribble Borough Council,http://statistics.data.gov.uk/id/local-authority/30UE,Street Cleansing,Agency Staff,1121,"NAME REDACTED W/E 04.08.23 - 39 hrs, @ 15.30ph",23/08/2023,0000491444,596.70,Revenue,ACE PERSONNEL,0
South Ribble Borough Council,http://statistics.data.gov.uk/id/local-authority/30UE,Recreation & Sport,Publicity & Promotion,4842,"Jan � June 2023 - 17 Level 2 Outputs and 4 Level 3 Outputs, (Level 2 certificates cost 31 and Level 3 certificates cost 34.25) ",23/08/2023,0000491647,540.00,Revenue,ACTIVE LANCASHIRE,0
South Ribble Borough Council,http://statistics.data.gov.uk/id/local-authority/30UE,Surplus or Deficit on Trading,Rents,2401,Rent for 3 months for Tippytoes as agreed by Working Group � NAME REDACTED,30/08/2023,0000491442,"3,000.00",Revenue,Ainscough Properties Ltd,0
South Ribble Borough Council,http://statistics.data.gov.uk/id/local-authority/30UE,Central Support Services,Other Fees,4520,Council Tax Reduction Update Service Support for 2024 Scheme,02/08/2023,0000490911,500.00,Revenue,AIREY CONSULTANCY LTD T/A ACS LTD,0
South Ribble Borough Council,http://statistics.data.gov.uk/id/local-authority/30UE,Capital,Cap Contract Payment,C230,"South Ribble Tennis Centre Decarbonisation Works:, Sub-Total : 877,302.16, + VAT 175,460.43, Total: 1,052,762.59",30/08/2023,0000490819,"234,277.29",Revenue,Alliance Leisure Services Limited,0
South Ribble Borough Council,http://statistics.data.gov.uk/id/local-authority/30UE,Capital,Cap Contract Payment,C230,"for DNO Connections and M&E Works in line with the Decarbonisation Scheme, across the leisure centres and civic centre please., ,",30/08/2023,0000490820,"268,315.67",Revenue,Alliance Leisure Services Limited,0
South Ribble Borough Council,http://statistics.data.gov.uk/id/local-authority/30UE,Capital,Cap Contract Payment,C230,"final M&E Works in line with the Decarbonisation Scheme, across the leisure centre and civic centre , The Civic Centre Decarbonis",30/08/2023,0000490821,"17,868.50",Revenue,Alliance Leisure Services Limited,0
South Ribble Borough Council,http://statistics.data.gov.uk/id/local-authority/30UE,Capital,Cap Contract Payment,C230,"for DNO Connections and M&E Works in line with the Decarbonisation Scheme, across the leisure centres and civic centre please., ,",30/08/2023,0000490822,"236,125.98",Revenue,Alliance Leisure Services Limited,0
South Ribble Borough Council,http://statistics.data.gov.uk/id/local-authority/30UE,Capital,Cap Contract Payment,C230,"Penwortham Leisure Centre Decarbonisation Works:, Sub-Total : 2,179,797.00, + VAT 435,959.40, Total: 2,615,756.40",30/08/2023,0000490824,"42,754.87",Revenue,Alliance Leisure Services Limited,0
South Ribble Borough Council,http://statistics.data.gov.uk/id/local-authority/30UE,Local Tax Collection,Bank Charges,4811,SRCT 31/07/2023,16/08/2023,0000491269,704.50,Revenue,ALLPAY LTD,0
South Ribble Borough Council,http://statistics.data.gov.uk/id/local-authority/30UE,Central Support Services,Agency Staff,1121,Agency Staff w/e 23/07/2023 - Week 16,09/08/2023,0000491135,"7,560.30",Revenue,ALS Managed Services Ltd,0
South Ribble Borough Council,http://statistics.data.gov.uk/id/local-authority/30UE,Central Support Services,Agency Staff,1121,Agency Staff w/e 06/08/2023 - Week 18,23/08/2023,0000491558,"7,559.78",Revenue,ALS Managed Services Ltd,0
South Ribble Borough Council,http://statistics.data.gov.uk/id/local-authority/30UE,Central Support Services,Agency Staff,1121,Agency Staff w/e 30/07/2023 - Week 17,23/08/2023,0000491584,"7,528.45",Revenue,ALS Managed Services Ltd,0
South Ribble Borough Council,http://statistics.data.gov.uk/id/local-authority/30UE,Central Support Services,External Contractors Charges,4570,Network ports and patching across multiple sites and cabinet installation,02/08/2023,0000490070,835.00,Revenue,AMPEC Limited,0
South Ribble Borough Council,http://statistics.data.gov.uk/id/local-authority/30UE,Central Support Services,External Contractors Charges,4570,Network ports and patching across multiple sites and cabinet installation,02/08/2023,0000490073,700.00,Revenue,AMPEC Limited,0
South Ribble Borough Council,http://statistics.data.gov.uk/id/local-authority/30UE,Capital,Cap Contract Payment,C230,"External Roofing Works at Leyland Leisure Centre, Order as per NAME REDACTED",02/08/2023,0000490343,"40,874.24",Revenue,AMS Cladding,0
South Ribble Borough Council,http://statistics.data.gov.uk/id/local-authority/30UE,Recreation & Sport,Planned Annual Repair & Maintenance,2021,Clear all roof gullies and wastewater systems. As shown by NAME REDACTED work safely. . Hire of MEWP required to undertake work safely. C,16/08/2023,0000491406,"2,100.00",Revenue,AMS Cladding,0
South Ribble Borough Council,http://statistics.data.gov.uk/id/local-authority/30UE,Recreation & Sport,Dev ftarget Sports-Coaching,4894,"Silver Corporate Package - The Anderton Centre., Half day activities (AM) - Lunch - Half day room hire (PM), 5th September 2023.,",23/08/2023,0000491586,937.50,Revenue,Anderton LOAI Ltd,0
South Ribble Borough Council,http://statistics.data.gov.uk/id/local-authority/30UE,Open Spaces,GM Refurbishment,4657,Reinstatement to land on Moons Field at Worden Park following a site meeting on 2nd June.,02/08/2023,0000490730,"1,150.00",Revenue,Andrew McClelland,0
South Ribble Borough Council,http://statistics.data.gov.uk/id/local-authority/30UE,Capital,Capital Grant,C570,DFG WORK FOR ADAPTATION FOR LEVEL ACCESS SHOWER AT ADDRESS REDACTED AS PER SRBC PLANS AND QUOTE SUPPLIED OF 6167.5,16/08/2023,0000491477,"5,664.39",Revenue,APG DOMESTIC SERVICES,0
South Ribble Borough Council,http://statistics.data.gov.uk/id/local-authority/30UE,Capital,Cap Contract Payment,C230,"Archaeological watching brief for path works, Worden Park, Leyland",09/08/2023,0000491136,"6,750.00",Revenue,Archaeological Research Services Ltd,0
South Ribble Borough Council,http://statistics.data.gov.uk/id/local-authority/30UE,Democratic Represent and  Mgnt,Consultancy Fees,4541,"Evaluation and Lessons Learned review of elections 2023, as per agreement with NAME REDACTED",30/08/2023,0000491652,"3,535.28",Revenue,ASSOC OF ELECTORAL ADMINISTRATORS LTD,0
South Ribble Borough Council,http://statistics.data.gov.uk/id/local-authority/30UE,Economic Development,Public Relations Strategy,4848,Annual Contract Payment,02/08/2023,0000490535,"5,500.00",Revenue,ATTAIN GROUP LIMITED,0
South Ribble Borough Council,http://statistics.data.gov.uk/id/local-authority/30UE,Central Support Services,Maintenance & Repair,4013,"Engineer Site Visit & Meeting Attendance, , INS/COMM, Installation & Commissioning (cost per engineer per day), 1 695.00 695.00",23/08/2023,0000491549,995.00,Revenue,AUDITEL,0
South Ribble Borough Council,http://statistics.data.gov.uk/id/local-authority/30UE,Central Support Services,External Contractors Charges,4570,"Engineer training and meeting attendance 19 July, Meeting supervision - Engineer to conduct pre-meeting system check, & attend Co",23/08/2023,0000491550,"1,490.00",Revenue,AUDITEL,0
South Ribble Borough Council,http://statistics.data.gov.uk/id/local-authority/30UE,Street Cleansing,Materials General,4040,"Site 1: Queens Hotel, Leyland, PR25 3NN, Option1:, �	6 x Toughened Glass panels required @ 165.00 each., �	Site Attendance @ 12",23/08/2023,0000491651,"3,134.25",Revenue,Autocross Euroshel Limited,0
South Ribble Borough Council,http://statistics.data.gov.uk/id/local-authority/30UE,Short Term Creditors,Amount Paid,0030,28th may 23,02/08/2023,0000490385,"21,570.28",Revenue,Barclays Bank Plc,0
South Ribble Borough Council,http://statistics.data.gov.uk/id/local-authority/30UE,Homelessness,Temporary Accommodation,5311,"4 nights @ 50.00 per night = 200.00 (dates: 30/06/2023 - 04/07/2023), , ...., , , HW  3 nights @ 50.00 per night = 150.",02/08/2023,0000490979,550.00,Revenue,Bay Roomz Ltd,0
South Ribble Borough Council,http://statistics.data.gov.uk/id/local-authority/30UE,Homelessness,Temporary Accommodation,5311,"4 nights @ 50.00 per night = 200.00 (dates: 30/06/2023 - 04/07/2023), , ...., , , HW  3 nights @ 50.00 per night = 150.",02/08/2023,0000490979,"1,105.00",Revenue,Bay Roomz Ltd,0
South Ribble Borough Council,http://statistics.data.gov.uk/id/local-authority/30UE,Central Support Services,Reactive Repair & Maintenance,2020,"White Space , Socket installation to back office - Materials, double sockets, conduit and cable.",02/08/2023,0000491052,850.00,Revenue,BELEC ELECTRICAL LTD,0
South Ribble Borough Council,http://statistics.data.gov.uk/id/local-authority/30UE,Central Support Services,Reactive Repair & Maintenance,2020,"Cabinet Office - Civic, installation of 3 double sockets with usb in white - extra rcd socket in dado printer, materials - usb so",02/08/2023,0000491054,544.00,Revenue,BELEC ELECTRICAL LTD,0
South Ribble Borough Council,http://statistics.data.gov.uk/id/local-authority/30UE,Surplus or Deficit on Trading,Reactive Repair & Maintenance,2020,"Remedial actions to achieve satisfactory EICR. Works required � , Remove defective wiring to lighting and extend wiring fitted by",02/08/2023,0000491079,580.80,Revenue,BELEC ELECTRICAL LTD,0
South Ribble Borough Council,http://statistics.data.gov.uk/id/local-authority/30UE,Central Support Services,Reactive Repair & Maintenance,2020,"Installation of leader room desk sockets, sockets and wiring in Cabinet Office, new socket circuit to Mayors tv socket, from stor",30/08/2023,0000491562,924.00,Revenue,BELEC ELECTRICAL LTD,0
South Ribble Borough Council,http://statistics.data.gov.uk/id/local-authority/30UE,Street Cleansing,Hiring Expenses,3212,Hire of Ford transit 350 L2 single cab tipper one stop alloy body 2 ltr 130 ps euro 6 VIN REDACTED for 3 months from 04.04.2023,02/08/2023,0000491003,870.00,Revenue,Blackburn Van Hire & Sales Limited,0
South Ribble Borough Council,http://statistics.data.gov.uk/id/local-authority/30UE,Waste Collection,Hiring Expenses,3212,Hire of a DAF LF45 160 20FT Tail-Lift Truck 7.5T @ 300/week 17th July until 11th August 2023,23/08/2023,0000491513,"1,200.00",Revenue,Blackburn Van Hire & Sales Limited,0
South Ribble Borough Council,http://statistics.data.gov.uk/id/local-authority/30UE,Development Control,Professional Fees,4510,Heritage consultancy services 22/23,23/08/2023,0000491676,749.29,Revenue,BLACKBURN WITH DARWEN BOROUGH COUNCIL,0
South Ribble Borough Council,http://statistics.data.gov.uk/id/local-authority/30UE,Central Support Services,Lancashire Payroll Service,4531,Payroll contract charges for 2022/23 for South Ribble Leisure,02/08/2023,0000490369,"2,312.10",Revenue,Blackpool Council,0
South Ribble Borough Council,http://statistics.data.gov.uk/id/local-authority/30UE,Short Term Creditors,Amount Paid,0030,Blues and Twos - July 23 Deductions from Payroll,23/08/2023,0000491658,"6,134.00",Revenue,Blues and Twos Credit Union,0
South Ribble Borough Council,http://statistics.data.gov.uk/id/local-authority/30UE,Short Term Creditors,Amount Paid,0030,Blues and Twos - August 23 Deductions from Payroll,30/08/2023,0000491782,"5,919.00",Revenue,Blues and Twos Credit Union,0
South Ribble Borough Council,http://statistics.data.gov.uk/id/local-authority/30UE,Street Cleansing,Materials General,4040,25 x Black Broxap Derby Slimline Litter Bin with ashtray.,02/08/2023,0000491078,"7,250.00",Revenue,BROXAP LTD,0
South Ribble Borough Council,http://statistics.data.gov.uk/id/local-authority/30UE,Central Support Services,Materials General,4040,1 HOPPER RAM VIN REDACTED JFC20176,23/08/2023,0000491568,"1,303.68",Revenue,C P DAVIDSON & SONS LTD,0
South Ribble Borough Council,http://statistics.data.gov.uk/id/local-authority/30UE,Central Support Services,Agency Staff,1121,Planning consultant NAME REDACTED Cuerdale Garden Village application,02/08/2023,0000490963,"1,518.00",Revenue,CAPITA PROPERTY AND INFRASTRUCTURE LTD,0
South Ribble Borough Council,http://statistics.data.gov.uk/id/local-authority/30UE,Central Support Services,Agency Staff,1121,"Provision of Internal Audit services, 2,500, plus VAT",09/08/2023,0000490828,726.00,Revenue,Castlefield Recruitment Limited,0
South Ribble Borough Council,http://statistics.data.gov.uk/id/local-authority/30UE,Central Support Services,Agency Staff,1121,"Provision of Internal Audit services, 2,500, plus VAT",09/08/2023,0000490934,726.00,Revenue,Castlefield Recruitment Limited,0
South Ribble Borough Council,http://statistics.data.gov.uk/id/local-authority/30UE,Capital,Cap Contract Payment,C230,"Alloy software and implementation, Capital costs",02/08/2023,0000490346,"22,650.00",Revenue,Causeway Technologies LTD,0
South Ribble Borough Council,http://statistics.data.gov.uk/id/local-authority/30UE,Central Support Services,IT Consumables,413A,consultancy support,02/08/2023,0000490734,"3,240.00",Revenue,Causeway Technologies LTD,0
South Ribble Borough Council,http://statistics.data.gov.uk/id/local-authority/30UE,Corporate Management,Corporate Training,1405,Description - First Aid Training for Waste Services Team for 50 employees,30/08/2023,0000490670,975.00,Revenue,Centaur Training Services (North West) Ltd,0
South Ribble Borough Council,http://statistics.data.gov.uk/id/local-authority/30UE,Corporate Management,Miscellaneous Expenses,4851,Quarter 1 Recharges 2023/24,16/08/2023,0000491534,"761,223.00",Revenue,CHORLEY BOROUGH COUNCIL,0
South Ribble Borough Council,http://statistics.data.gov.uk/id/local-authority/30UE,Central Support Services,Software Licensing,4243,"DAG - Modern Gov, , Our Ref: DSOU147 / MGV0596SOU-A, End User: South Ribble Borough Council, , 01/09/2023 - 31/08/2024 will be � ",02/08/2023,0000490712,"16,491.09",Revenue,CIVICA UK LTD,0
South Ribble Borough Council,http://statistics.data.gov.uk/id/local-authority/30UE,Central Support Services,Software Licensing,4243,"Licence, Support and Maintenance 01/07/2023 to 30/06/2024, Accent Foundation, LSM6814ABR",02/08/2023,0000491044,"6,902.21",Revenue,CIVICA UK LTD,0
South Ribble Borough Council,http://statistics.data.gov.uk/id/local-authority/30UE,Central Support Services,Software Licensing,4243,"Licence, Support and Maintenance 01/07/2023 to 30/06/2024, New Progress, LSM6816ABR",02/08/2023,0000491046,"6,902.21",Revenue,CIVICA UK LTD,0
South Ribble Borough Council,http://statistics.data.gov.uk/id/local-authority/30UE,Homelessness,Temporary Accommodation,5311,"NEW PURCHASE ORDER FOR CLAREMONT HOTEL IN PRESTON, , 490.00 (10 nights, 17/07/23  27/07/23), , 49.00 for AG (1 night, 1",16/08/2023,0000491515,910.00,Revenue,CLAREMONT HOTEL,0
South Ribble Borough Council,http://statistics.data.gov.uk/id/local-authority/30UE,Homelessness,Temporary Accommodation,5311,Purchase order for the Claremont Hotel in Preston for two homeless guests that were accommodated at the hotel between 31.07.23 an,16/08/2023,0000491516,504.00,Revenue,CLAREMONT HOTEL,0
South Ribble Borough Council,http://statistics.data.gov.uk/id/local-authority/30UE,Economic Development,Investment & Improvement,485K,"Double page editorial for NORTH WEST 2023 ``Stand Alone`` Edition , Double page spread, full colour within the opening Lancashire",02/08/2023,0000490453,"1,254.00",Revenue,COMMERCIAL PROPERTY MONTHLY,0
South Ribble Borough Council,http://statistics.data.gov.uk/id/local-authority/30UE,Recreation & Sport,Materials General,4040,600 for Table Tennis Equipment Repairs,23/08/2023,0000491576,600.00,Revenue,Community Network and Outreach,0
South Ribble Borough Council,http://statistics.data.gov.uk/id/local-authority/30UE,Central Support Services,Legal,4821,"Counsel`s fees relating to planning fee dispute on Worden Gardens, Reference: 515800",30/08/2023,0000491775,"1,500.00",Revenue,Constanze Bell,0
South Ribble Borough Council,http://statistics.data.gov.uk/id/local-authority/30UE,Central Support Services,Purchase of Bins,4043,"Brown wheelie bins 270 x 19.40, carriage 150.00",02/08/2023,0000491018,"5,388.00",Revenue,Contenur UK Ltd,0
South Ribble Borough Council,http://statistics.data.gov.uk/id/local-authority/30UE,Recreation & Sport,Gas,2304,dec21-jan22,23/08/2023,0000475199,931.08,Revenue,Corona Energy Retail 4 Limited,0
South Ribble Borough Council,http://statistics.data.gov.uk/id/local-authority/30UE,Recreation & Sport,Gas,2304,dec21-jan22,23/08/2023,0000475206,"3,373.89",Revenue,Corona Energy Retail 4 Limited,0
South Ribble Borough Council,http://statistics.data.gov.uk/id/local-authority/30UE,Recreation & Sport,Gas,2304,dec21-jan22,23/08/2023,0000475207,776.98,Revenue,Corona Energy Retail 4 Limited,0
South Ribble Borough Council,http://statistics.data.gov.uk/id/local-authority/30UE,Recreation & Sport,Gas,2304,dec21-jan22,23/08/2023,0000475208,"5,510.31",Revenue,Corona Energy Retail 4 Limited,0
South Ribble Borough Council,http://statistics.data.gov.uk/id/local-authority/30UE,Recreation & Sport,Gas,2304,dec21-jan22,23/08/2023,0000475213,"4,327.92",Revenue,Corona Energy Retail 4 Limited,0
South Ribble Borough Council,http://statistics.data.gov.uk/id/local-authority/30UE,Recreation & Sport,Gas,2304,jan-feb22,23/08/2023,0000476044,999.34,Revenue,Corona Energy Retail 4 Limited,0
South Ribble Borough Council,http://statistics.data.gov.uk/id/local-authority/30UE,Recreation & Sport,Gas,2304,feb-mar22,23/08/2023,0000477333,922.33,Revenue,Corona Energy Retail 4 Limited,0
South Ribble Borough Council,http://statistics.data.gov.uk/id/local-authority/30UE,Recreation & Sport,Gas,2304,mar-apr22,23/08/2023,0000478303,552.90,Revenue,Corona Energy Retail 4 Limited,0
South Ribble Borough Council,http://statistics.data.gov.uk/id/local-authority/30UE,Recreation & Sport,Gas,2304,aug-sept21,23/08/2023,0000481491,"3,055.97",Revenue,Corona Energy Retail 4 Limited,0
South Ribble Borough Council,http://statistics.data.gov.uk/id/local-authority/30UE,Recreation & Sport,Gas,2304,Aug -sept21,23/08/2023,0000485334,"2,515.84",Revenue,Corona Energy Retail 4 Limited,0
South Ribble Borough Council,http://statistics.data.gov.uk/id/local-authority/30UE,Short Term Creditors,Amount Paid,0030,Refund,23/08/2023,0000488130,"33,455.93",Revenue,Corona Energy Retail 4 Limited,0
South Ribble Borough Council,http://statistics.data.gov.uk/id/local-authority/30UE,Central Support Services,Miscellaneous Expenses,4851,"Civic Centre, Leyland, PR25 1DH, Serve and Evict Travellers",09/08/2023,0000491212,"1,550.00",Revenue,Court Enforcement Specialists Ltd,0
South Ribble Borough Council,http://statistics.data.gov.uk/id/local-authority/30UE,Central Support Services,Miscellaneous Expenses,4851,"Eviction of GRT from land to the side of the Civic Centre, West Paddock Leyland on 16.8.23 (16.00-20.00)",23/08/2023,0000491617,"1,250.00",Revenue,Court Enforcement Specialists Ltd,0
South Ribble Borough Council,http://statistics.data.gov.uk/id/local-authority/30UE,Central Support Services,Miscellaneous Expenses,4851,"Removal of trespassers from West Paddock, Civic Centre, Preston, PR25 1DH on 20/08/2023",23/08/2023,0000491691,"2,825.00",Revenue,Court Enforcement Specialists Ltd,0
South Ribble Borough Council,http://statistics.data.gov.uk/id/local-authority/30UE,Local Tax Collection,Postage General,4291,POSTAGE FOR JULY 2023,02/08/2023,0000491019,719.02,Revenue,CRITIQOM,0
South Ribble Borough Council,http://statistics.data.gov.uk/id/local-authority/30UE,Local Tax Collection,Postage General,4291,POSTAGE FOR JULY 2023,16/08/2023,0000491508,914.93,Revenue,CRITIQOM,0
South Ribble Borough Council,http://statistics.data.gov.uk/id/local-authority/30UE,Central Support Services,Miscellaneous Expenses,4851,Provision of services in accordance with Subscription HR1615 - Invoice No BSI995387,23/08/2023,0000491555,608.00,Revenue,CRONER-i LIMITED t/a HR INFORM,0
South Ribble Borough Council,http://statistics.data.gov.uk/id/local-authority/30UE,Capital,Capital Grant,C570,DFG WORK FOR ADAPTATION FOR LEVEL ACCESS SHOWER AT ADDRESS REDACTED AS PER SRBC PLANS AND QUOTE SUPPLIED OF 5280.0,09/08/2023,0000491201,"5,280.00",Revenue,Croston Plumbing & Heating Ltd,0
South Ribble Borough Council,http://statistics.data.gov.uk/id/local-authority/30UE,Development Control,Miscellaneous Expenses,4851,Drone survey at ADDRESS REDACTED,30/08/2023,0000491705,"1,150.00",Revenue,Cube Property Services Ltd,0
South Ribble Borough Council,http://statistics.data.gov.uk/id/local-authority/30UE,Capital,Cap Professional Fees,C210,Leyland Town Deal - Traffic and Transport Engineering Services Professional Fees - Procurement 3: Public Realm (RIBA 4),09/08/2023,0000489074,"11,500.00",Revenue,Curtins Consulting Ltd,0
South Ribble Borough Council,http://statistics.data.gov.uk/id/local-authority/30UE,Capital,Cap Professional Fees,C210,Leyland Town Deal - Traffic and Transport Engineering Services Professional Fees - Procurement 3: Public Realm (RIBA 4),09/08/2023,0000489438,"10,862.00",Revenue,Curtins Consulting Ltd,0
South Ribble Borough Council,http://statistics.data.gov.uk/id/local-authority/30UE,Capital,Cap Professional Fees,C210,Leyland Town Deal - Traffic and Transport Engineering Services Professional Fees - Procurement 4: Construction of BASE2 & Commerc,30/08/2023,0000489439,857.00,Revenue,Curtins Consulting Ltd,0
South Ribble Borough Council,http://statistics.data.gov.uk/id/local-authority/30UE,Capital,Cap Professional Fees,C210,Leyland Town Deal - Traffic and Transport Engineering Services Professional Fees - Procurement 4: Construction of BASE2 & Commerc,02/08/2023,0000490304,772.00,Revenue,Curtins Consulting Ltd,0
South Ribble Borough Council,http://statistics.data.gov.uk/id/local-authority/30UE,Capital,Cap Professional Fees,C210,Leyland Town Deal - Highways Consultancy Fees Quin St RIBA 4,30/08/2023,0000490305,991.00,Revenue,Curtins Consulting Ltd,0
South Ribble Borough Council,http://statistics.data.gov.uk/id/local-authority/30UE,Recreation & Sport,Telephones-Rental,4261,30th june 2023,02/08/2023,0000490962,533.68,Revenue,Daisy Communications LTD,0
South Ribble Borough Council,http://statistics.data.gov.uk/id/local-authority/30UE,Central Support Services,Agency Staff,1121,South Ribble Customer Services Housing Temp Cover,02/08/2023,0000487599,545.56,Revenue,Daniel Adams Recruitment Ltd,0
South Ribble Borough Council,http://statistics.data.gov.uk/id/local-authority/30UE,Central Support Services,Agency Staff,1121,South Ribble Customer Services Housing Temp Cover,02/08/2023,0000487655,514.80,Revenue,Daniel Adams Recruitment Ltd,0
South Ribble Borough Council,http://statistics.data.gov.uk/id/local-authority/30UE,Central Support Services,Agency Staff,1121,South Ribble Customer Services Housing Temp Cover,02/08/2023,0000490829,504.00,Revenue,Daniel Adams Recruitment Ltd,0
South Ribble Borough Council,http://statistics.data.gov.uk/id/local-authority/30UE,Community Development,Miscellaneous Expenses,4851,,02/08/2023,0000491099,500.00,Revenue,Danielle Mensah,0
South Ribble Borough Council,http://statistics.data.gov.uk/id/local-authority/30UE,Homelessness,Contributions to Other Bodies,4730,Purchase order for the next four weeks of accommodation for NAME REDACTED who is staying at the Anvil Guest House in Bamber Bridge whic,23/08/2023,0000491626,525.00,Revenue,David Iddon & Corrina Kellett,0
South Ribble Borough Council,http://statistics.data.gov.uk/id/local-authority/30UE,Central Support Services,Materials General,4040,"Nox Sensor, VIN REDACTED, JFC 20162",02/08/2023,0000490264,598.66,Revenue,DENNIS EAGLE LTD,0
South Ribble Borough Council,http://statistics.data.gov.uk/id/local-authority/30UE,Central Support Services,Materials General,4040,"hopper floor, side blocks, beacon, washer jet, VIN REDACTED, JFC 20425",02/08/2023,0000490923,708.67,Revenue,DENNIS EAGLE LTD,0
South Ribble Borough Council,http://statistics.data.gov.uk/id/local-authority/30UE,Central Support Services,Materials General,4040,"hopper floor, side blocks, beacon, washer jet, VIN REDACTED, JFC 20425",16/08/2023,0000491245,"1,224.05",Revenue,DENNIS EAGLE LTD,0
South Ribble Borough Council,http://statistics.data.gov.uk/id/local-authority/30UE,Central Support Services,Operational Equip & Tools,4010,16 x OC97FDA - Orthopaedica chair with fold down height adjustable multi functional arm pads and pump up lumber in black 265.81 ,23/08/2023,0000489177,"4,252.96",Revenue,Diamond Business Interiors Ltd,0
South Ribble Borough Council,http://statistics.data.gov.uk/id/local-authority/30UE,Central Support Services,Fixtures and Fittings,2611,"1	AS12	Aspen Rectangular desk 1200 x 800 x 730m	Silver frame /white MFC	24x107.31	2575.44, 2	WGE10950	Cable basket 950 x100x 50",02/08/2023,0000490293,"5,024.24",Revenue,Diamond Business Interiors Ltd,0
South Ribble Borough Council,http://statistics.data.gov.uk/id/local-authority/30UE,Democratic Represent and  Mgnt,Furniture,4017,"Supply of furniture for the SRBC Mayors Parlour and Office. , , Quote number - Q24356-4",30/08/2023,0000491325,"6,315.79",Revenue,Diamond Business Interiors Ltd,0
South Ribble Borough Council,http://statistics.data.gov.uk/id/local-authority/30UE,Democratic Represent and  Mgnt,Furniture,4017,"Supply of furniture for the SRBC Leader and Cabinet Offices., , Quote number - Q24356-6",30/08/2023,0000491326,"7,976.78",Revenue,Diamond Business Interiors Ltd,0
South Ribble Borough Council,http://statistics.data.gov.uk/id/local-authority/30UE,Community Safety Services,Publicity & Promotion,4842,"Digital Hearing Equipment , Phonak Roger On IN v1 Transmitter (useful for the landline phone and groups of up to around 8 people)",16/08/2023,0000490674,"3,715.00",Revenue,Digital Hearing Care Solutions,0
South Ribble Borough Council,http://statistics.data.gov.uk/id/local-authority/30UE,Central Support Services,Planned Annual Repair & Maintenance,2021,"2 days High Performance Jet Vac Tanker to remove hazardous waste from the Quadraceptor and the two stage oil, separator near the ",16/08/2023,0000491410,"3,770.00",Revenue,DRAIN ALERT LTD,0
South Ribble Borough Council,http://statistics.data.gov.uk/id/local-authority/30UE,Central Support Services,Materials General,4040,1 pump VIN REDACTED JFC20199,09/08/2023,0000489376,731.00,Revenue,Dynamic Pump Services Limited,0
South Ribble Borough Council,http://statistics.data.gov.uk/id/local-authority/30UE,Central Support Services,Materials General,4040,"1x PTO pump, VIN REDACTED, JFC20255",09/08/2023,0000489850,711.00,Revenue,Dynamic Pump Services Limited,0
South Ribble Borough Council,http://statistics.data.gov.uk/id/local-authority/30UE,Surplus or Deficit on Trading,Electricity,2303,18/5 to 31/5/23,02/08/2023,0000489881,557.14,Revenue,E.ON,0
South Ribble Borough Council,http://statistics.data.gov.uk/id/local-authority/30UE,Capital,Cap Contract Payment,C230,Hardware and install at sites in SRBC area - per NAME REDACTED,23/08/2023,0000490675,"5,170.00",Revenue,EB Charging Ltd,0
South Ribble Borough Council,http://statistics.data.gov.uk/id/local-authority/30UE,Central Support Services,Hiring Expenses,3212,"Hire of 26T Split Body VIN REDACTED, 13.6.23 - 14.7.23 inc",16/08/2023,0000491242,"3,375.00",Revenue,Euro Municipals Ltd,0
South Ribble Borough Council,http://statistics.data.gov.uk/id/local-authority/30UE,Central Support Services,Hiring Expenses,3212,"Hire of 26T Split Body VIN REDACTED, 13.6.23 - 14.7.23 inc",16/08/2023,0000491244,"4,840.00",Revenue,Euro Municipals Ltd,0
South Ribble Borough Council,http://statistics.data.gov.uk/id/local-authority/30UE,Homelessness,Contributions to Other Bodies,4730,"SRBC needs to pay 10,000.00 to Excel Housing Solutions for the final four months of the existing floating support contract in pl",02/08/2023,0000491027,"10,000.00",Revenue,Excel Housing Solutions,0
South Ribble Borough Council,http://statistics.data.gov.uk/id/local-authority/30UE,Homelessness,Contributions to Other Bodies,4730,"SRBC needs to pay 8,750.01 to Excel Housing Solutions for the first three months of its new floating support contract (August, S",02/08/2023,0000491028,"8,750.01",Revenue,Excel Housing Solutions,0
South Ribble Borough Council,http://statistics.data.gov.uk/id/local-authority/30UE,Central Support Services,Materials General,4040,1 hydraulic tank VIN REDACTED JFC20380,09/08/2023,0000491171,696.17,Revenue,F R SHARROCK LTD,0
South Ribble Borough Council,http://statistics.data.gov.uk/id/local-authority/30UE,Central Support Services,Materials General,4040,FOOTBALL PITCH LINE MARKER PAINT 10LTRS-PITCHMARKER Q2,23/08/2023,0000491569,511.68,Revenue,Fleet Line Markers Limited,0
South Ribble Borough Council,http://statistics.data.gov.uk/id/local-authority/30UE,Central Support Services,Legal,4821,Equalities Act Claim being made against the Council by a NAME REDACTED,02/08/2023,0000490871,"3,630.50",Revenue,Forbes Solicitors Office,0
South Ribble Borough Council,http://statistics.data.gov.uk/id/local-authority/30UE,Central Support Services,Legal,4821,Equalities Act Claim being made against the Council by a NAME REDACTED,02/08/2023,0000490886,647.50,Revenue,Forbes Solicitors Office,0
South Ribble Borough Council,http://statistics.data.gov.uk/id/local-authority/30UE,Central Support Services,Occupational Health,1408,Drafting new Settlement Agreement,16/08/2023,0000491235,"1,477.50",Revenue,Forbes Solicitors Office,0
South Ribble Borough Council,http://statistics.data.gov.uk/id/local-authority/30UE,Central Support Services,Legal,4821,Equalities Act Claim being made against the Council by a NAME REDACTED,16/08/2023,0000491300,"2,564.50",Revenue,Forbes Solicitors Office,0
South Ribble Borough Council,http://statistics.data.gov.uk/id/local-authority/30UE,Service Management & Support,Petrol,3131,Fuel W/C 31.07.23,16/08/2023,0000491403,643.08,Revenue,Fuel Card Services,0
South Ribble Borough Council,http://statistics.data.gov.uk/id/local-authority/30UE,Service Management & Support,Diesel Fuel,3132,Diesel purchased due to fault with pump.,16/08/2023,0000491436,"2,079.37",Revenue,Fuel Card Services,0
South Ribble Borough Council,http://statistics.data.gov.uk/id/local-authority/30UE,Open Spaces,GM Refurbishment,4657,10x large rubber seats and x10 pod seats as per quotation 311905.,02/08/2023,0000490887,"2,695.00",Revenue,G L JONES PLAYGROUNDS LTD,0
South Ribble Borough Council,http://statistics.data.gov.uk/id/local-authority/30UE,Recycling,Merchant Charges,4816,OR00006F1W6PM1,09/08/2023,0000491253,"3,058.70",Revenue,GoCardless Ltd,0
South Ribble Borough Council,http://statistics.data.gov.uk/id/local-authority/30UE,Recreation & Sport,Reactive Repair & Maintenance,2020,Emergancy roofing/electrical works folowing recent episodes of vandulisum. Four vents and two roof fans in total had to be replac,09/08/2023,0000491251,"1,874.74",Revenue,GOS Heating Ltd,0
South Ribble Borough Council,http://statistics.data.gov.uk/id/local-authority/30UE,Capital,Capital Grant,C570,DFG WORK FOR ADAPTATION FOR LEVEL ACCESS SHOWER AT ADDRESS REDACTED AS PER SRBC PLANS AND QUOTE SUPPLIED OF 5853.,09/08/2023,0000491290,"6,795.69",Revenue,GOS Heating Ltd,0
South Ribble Borough Council,http://statistics.data.gov.uk/id/local-authority/30UE,Central Support Services,Reactive Repair & Maintenance,2020,"Main water heater requires a new gas valve, engineer had to isolate it as it does not cut off the gas folowing gas saftey inspect",30/08/2023,0000491511,"1,053.00",Revenue,GOS Heating Ltd,0
South Ribble Borough Council,http://statistics.data.gov.uk/id/local-authority/30UE,Central Support Services,Planned Annual Repair & Maintenance,2021,ADDRESS REDACTED,23/08/2023,0000491512,"1,622.40",Revenue,GOS Heating Ltd,0
South Ribble Borough Council,http://statistics.data.gov.uk/id/local-authority/30UE,Central Support Services,Planned Annual Repair & Maintenance,2021,ADDRESS REDACTED,23/08/2023,0000491512,725.40,Revenue,GOS Heating Ltd,0
South Ribble Borough Council,http://statistics.data.gov.uk/id/local-authority/30UE,Central Support Services,Consultancy Fees,4541,"23087, To: One off installation and configuration of the GOSS Modern.gov Reverse CMS , Template for South Ribble Borough Council,",02/08/2023,0000490493,"3,300.00",Revenue,Goss Interactive Limited,0
South Ribble Borough Council,http://statistics.data.gov.uk/id/local-authority/30UE,Corporate Management,External Audit Fees,4512,2021-22 External Audit. Agreed Additional Audit fees now approved by PSAA,30/08/2023,0000491816,"41,926.00",Revenue,Grant Thornton UK LLP,0
South Ribble Borough Council,http://statistics.data.gov.uk/id/local-authority/30UE,Surplus or Deficit on Trading,Reactive Repair & Maintenance,2020,SK - Collection and Disposal of asbestos waste from ADDRESS REDACTED.Quote Number QU-0231 as per NAME REDACTED request ,16/08/2023,0000491488,950.00,Revenue,Greenfield Removals,0
South Ribble Borough Council,http://statistics.data.gov.uk/id/local-authority/30UE,Short Term Creditors,Amount Received,0140,,09/08/2023,0000490611,"2,778.58",Revenue,HM REVENUE & CUSTOMS,0
South Ribble Borough Council,http://statistics.data.gov.uk/id/local-authority/30UE,Short Term Creditors,Amount Received,0140,,09/08/2023,0000491133,"1,578.30",Revenue,HM REVENUE & CUSTOMS,0
South Ribble Borough Council,http://statistics.data.gov.uk/id/local-authority/30UE,Short Term Creditors,Amount Paid,0030,HMRC Income Tax - July 23 Deductions from Payroll,23/08/2023,0000491666,"104,913.24",Revenue,HM REVENUE & CUSTOMS 065PV00107808,0
South Ribble Borough Council,http://statistics.data.gov.uk/id/local-authority/30UE,Unapportionable Central OHeads,Apprentice Levy,1111,HMRC App Levy - July 23 Deductions from Payroll,23/08/2023,0000491667,"3,577.00",Revenue,HM REVENUE & CUSTOMS 065PV00107808,0
South Ribble Borough Council,http://statistics.data.gov.uk/id/local-authority/30UE,Short Term Creditors,Amount Paid,0030,HMRC NI EE's - July 23 Deductions from Payroll,23/08/2023,0000491668,"62,763.03",Revenue,HM REVENUE & CUSTOMS 065PV00107808,0
South Ribble Borough Council,http://statistics.data.gov.uk/id/local-authority/30UE,Short Term Creditors,Amount Paid,0030,HMRC NI ER's - July 23 Deductions from Payroll,23/08/2023,0000491669,"88,455.42",Revenue,HM REVENUE & CUSTOMS 065PV00107808,0
South Ribble Borough Council,http://statistics.data.gov.uk/id/local-authority/30UE,Short Term Creditors,Amount Paid,0030,HMRC Student Loans - July 23 Deductions from Payroll,23/08/2023,0000491671,"3,357.00",Revenue,HM REVENUE & CUSTOMS 065PV00107808,0
South Ribble Borough Council,http://statistics.data.gov.uk/id/local-authority/30UE,Short Term Creditors,Amount Paid,0030,HMRC Income Tax - August 23 Deductions from Payroll,30/08/2023,0000491790,"108,414.38",Revenue,HM REVENUE & CUSTOMS 065PV00107808,0
South Ribble Borough Council,http://statistics.data.gov.uk/id/local-authority/30UE,Unapportionable Central OHeads,Apprentice Levy,1111,HMRC App Levy - August 23 Deductions from Payroll,30/08/2023,0000491791,"7,248.00",Revenue,HM REVENUE & CUSTOMS 065PV00107808,0
South Ribble Borough Council,http://statistics.data.gov.uk/id/local-authority/30UE,Short Term Creditors,Amount Paid,0030,HMRC NI EE's - August 23 Deductions from Payroll,30/08/2023,0000491793,"63,225.12",Revenue,HM REVENUE & CUSTOMS 065PV00107808,0
South Ribble Borough Council,http://statistics.data.gov.uk/id/local-authority/30UE,Short Term Creditors,Amount Paid,0030,HMRC NI ER's - August 23 Deductions from Payroll,30/08/2023,0000491794,"89,546.34",Revenue,HM REVENUE & CUSTOMS 065PV00107808,0
South Ribble Borough Council,http://statistics.data.gov.uk/id/local-authority/30UE,Short Term Creditors,Amount Paid,0030,HMRC Student Loans - August 23 Deductions from Payroll,30/08/2023,0000491796,"3,780.00",Revenue,HM REVENUE & CUSTOMS 065PV00107808,0
South Ribble Borough Council,http://statistics.data.gov.uk/id/local-authority/30UE,Local Tax Collection,Court Fees,4822,,02/08/2023,0000489903,596.00,Revenue,HMCTS,0
South Ribble Borough Council,http://statistics.data.gov.uk/id/local-authority/30UE,Open Spaces,GM Refurbishment,4657,To supply x2 Yellow prosafe self closing gates as per Quotation Q186925-1. Total cost including delivery 2220.10.,09/08/2023,0000491075,"2,220.10",Revenue,IAE,0
South Ribble Borough Council,http://statistics.data.gov.uk/id/local-authority/30UE,Capital,Cap Contract Payment,C230,Leyland Town Deal - EA & QS for NFM Iddon Factory Demolition,02/08/2023,0000488493,"6,043.75",Revenue,Identity Consult Ltd,0
South Ribble Borough Council,http://statistics.data.gov.uk/id/local-authority/30UE,Capital,Cap Contract Payment,C230,Leyland Town Deal - EA & QS for NFM Iddon Factory Demolition,02/08/2023,0000489499,"4,568.75",Revenue,Identity Consult Ltd,0
South Ribble Borough Council,http://statistics.data.gov.uk/id/local-authority/30UE,Capital,Cap Contract Payment,C230,Leyland Town Deal - EA & QS for NFM Iddon Factory Demolition,02/08/2023,0000490400,"3,000.00",Revenue,Identity Consult Ltd,0
South Ribble Borough Council,http://statistics.data.gov.uk/id/local-authority/30UE,Capital,Cap Contract Payment,C230,Leyland Town Deal - EA & QS for NFM Iddon Factory Demolition,09/08/2023,0000491122,"2,750.00",Revenue,Identity Consult Ltd,0
South Ribble Borough Council,http://statistics.data.gov.uk/id/local-authority/30UE,Capital,Consultancy,C259,Project Management Services - Jubilee Gardens (RIBA 4) - As per additional scope v3,02/08/2023,0000491123,"4,000.00",Revenue,Identity Consult Ltd,0
South Ribble Borough Council,http://statistics.data.gov.uk/id/local-authority/30UE,Central Support Services,Software Licensing,4243,"Iken Annual Cloud Subscription, , 12 x 1,927.20, , Iken Cloud Support, , Total due 11,563.20",02/08/2023,0000489468,"9,636.00",Revenue,Iken Business Ltd,0
South Ribble Borough Council,http://statistics.data.gov.uk/id/local-authority/30UE,Capital,Capital Grant,C570,"DFG WORKS TO SUPPLY AND INSTALL SPECIALIST TOILET AT ADDRESS REDACTED AS PER QUOTE SUPPLIED OF 4121.79, TOTAL ",09/08/2023,0000491289,"4,121.79",Revenue,Independent Adaptations Ltd,0
South Ribble Borough Council,http://statistics.data.gov.uk/id/local-authority/30UE,Economic Development,Rental,4012,2023 / 2024 annual contract No C/90123016 for the nappy disposal unit at Leyland Market,09/08/2023,0000490835,584.72,Revenue,INITIAL WASHROOM HYGIENE,0
South Ribble Borough Council,http://statistics.data.gov.uk/id/local-authority/30UE,Economic Development,Cleaning,2710,2023 / 2024 annual contract C/90123016 for 2 standard plus 150 x 250 floor mats at Leyland Market,09/08/2023,0000490835,"1,344.95",Revenue,INITIAL WASHROOM HYGIENE,0
South Ribble Borough Council,http://statistics.data.gov.uk/id/local-authority/30UE,Central Support Services,Rental,4012,"2023 / 2024 contract No C/90261051 for 1 x extreme mat 85 x 300 at Moss Side Depot 81 Bison Place, Leyland",09/08/2023,0000490835,728.93,Revenue,INITIAL WASHROOM HYGIENE,0
South Ribble Borough Council,http://statistics.data.gov.uk/id/local-authority/30UE,Short Term Creditors,Amount Paid,0030,HMRC Income Tax - June 23 Deductions from Payroll elections,23/08/2023,0000491675,"16,830.64",Revenue,Inland Revenue 475PY01673498 Elections,0
South Ribble Borough Council,http://statistics.data.gov.uk/id/local-authority/30UE,Waste Collection,Diesel Fuel,3132,"1000 x green recycling boxes @ 4.75 = 4750.0, 840 x black lids @ 2.31 = 1940.4 , 50 x boxes @ Free of charge",30/08/2023,0000491137,"6,482.50",Revenue,IPL Plastics (UK) Limited,0
South Ribble Borough Council,http://statistics.data.gov.uk/id/local-authority/30UE,Central Support Services,Purchase of Bins,4043,"300 x 18.00 240L grey wheelie bins = 5400, 300 x 18.00 240 L blue wheelie bins = 5400",16/08/2023,0000491440,"10,800.00",Revenue,IPL Plastics (UK) Limited,0
South Ribble Borough Council,http://statistics.data.gov.uk/id/local-authority/30UE,Recreation & Sport,Professional Fees,4510,"Dance Teacher casual:, Leyland Methodist School, Clayton Brook Primary School, Westwood Primary School, Total 39.14 hours @ 25/h",09/08/2023,0000491128,978.50,Revenue,Isabelle Oates,0
South Ribble Borough Council,http://statistics.data.gov.uk/id/local-authority/30UE,Central Support Services,Materials General,4040,"EBS Modulator Valve, VIN REDACTED, JFC20547",23/08/2023,0000491538,995.00,Revenue,JAMES HART (CHORLEY) LTD,0
South Ribble Borough Council,http://statistics.data.gov.uk/id/local-authority/30UE,Open Spaces,GM Refurbishment,4657,Removal of Debris from ice house,30/08/2023,0000491553,750.00,Revenue,John Wade Groundworks Ltd t/a Wade Group,0
South Ribble Borough Council,http://statistics.data.gov.uk/id/local-authority/30UE,Community Development,Core Fund,4861,"Havelock Road Path, Final Valuation as per 1640/HRP",30/08/2023,0000491776,"13,705.00",Revenue,John Wade Groundworks Ltd t/a Wade Group,0
South Ribble Borough Council,http://statistics.data.gov.uk/id/local-authority/30UE,Open Spaces,Hiring Expenses,3212,Leguan 19m Tracked MEWP 24th July -28th July,09/08/2023,0000491129,"1,200.00",Revenue,K H HIRE SERVICES,0
South Ribble Borough Council,http://statistics.data.gov.uk/id/local-authority/30UE,Central Support Services,Office Requisites,4136,2 x Health & Safety Boards @ 348.00,23/08/2023,0000491502,696.00,Revenue,KDJ Dezigns LTD T/A Sign Dezign,0
South Ribble Borough Council,http://statistics.data.gov.uk/id/local-authority/30UE,Community Development,Miscellaneous Expenses,4851,,02/08/2023,0000491116,650.00,Revenue,Keith Rutherford,0
South Ribble Borough Council,http://statistics.data.gov.uk/id/local-authority/30UE,Surplus or Deficit on Trading,Electricity,2303,elec,16/08/2023,0000491450,659.34,Revenue,Kinex,0
South Ribble Borough Council,http://statistics.data.gov.uk/id/local-authority/30UE,Capital,Cap Contract Payment,C230,"Design and build of a new playground at Ryden Avenue, Leyland, PR25 4ZL.",02/08/2023,0000490889,"68,250.00",Revenue,KOMPAN LTD,0
South Ribble Borough Council,http://statistics.data.gov.uk/id/local-authority/30UE,Local Land Charges,L C C General,4530,Land Charges - April 2023,23/08/2023,0000489451,697.00,Revenue,LANCS COUNTY COUNCIL,0
South Ribble Borough Council,http://statistics.data.gov.uk/id/local-authority/30UE,Local Land Charges,L C C General,4530,Land Charges - May 2023,23/08/2023,0000490053,685.00,Revenue,LANCS COUNTY COUNCIL,0
South Ribble Borough Council,http://statistics.data.gov.uk/id/local-authority/30UE,Local Land Charges,L C C General,4530,Land Charges - June 2023,23/08/2023,0000490964,740.00,Revenue,LANCS COUNTY COUNCIL,0
South Ribble Borough Council,http://statistics.data.gov.uk/id/local-authority/30UE,Development Control,Professional Fees,4510,Service level agreements (SLAs) for 2023/24 - Historic environment team,09/08/2023,0000491031,"1,988.00",Revenue,LANCS COUNTY COUNCIL,0
South Ribble Borough Council,http://statistics.data.gov.uk/id/local-authority/30UE,Capital,Capital Grant,C570,"DFG WORK FOR ADAPTATION FOR HOIST EQUIPMENT AT ADDRESS REDACTED QUOTE SUPPLIED OF 3298.23, TOTAL COST 3298.23",16/08/2023,0000491479,"3,298.23",Revenue,LANCS COUNTY COUNCIL,0
South Ribble Borough Council,http://statistics.data.gov.uk/id/local-authority/30UE,Local Land Charges,L C C General,4530,Land Charges - July 2023,23/08/2023,0000491607,570.00,Revenue,LANCS COUNTY COUNCIL,0
South Ribble Borough Council,http://statistics.data.gov.uk/id/local-authority/30UE,Central Support Services,Materials General,4040,"Turbo actuator, VIN REDACTED, JFC 20438",02/08/2023,0000490890,"1,275.00",Revenue,LANCS DAF,0
South Ribble Borough Council,http://statistics.data.gov.uk/id/local-authority/30UE,Central Support Services,Materials General,4040,1 x Crank Pulley VIN REDACTED JFC20412,02/08/2023,0000490939,805.43,Revenue,LANCS DAF,0
South Ribble Borough Council,http://statistics.data.gov.uk/id/local-authority/30UE,Central Support Services,Materials General,4040,"door check stop, door strap bracket, Lower bumper cover, Upper bumper cover, 2 x fog light pedals, driver side step, , VIN REDACTED, ",23/08/2023,0000491284,"1,358.70",Revenue,LANCS DAF,0
South Ribble Borough Council,http://statistics.data.gov.uk/id/local-authority/30UE,Central Support Services,Materials General,4040,spring brake chamber VIN REDACTED JFC20515,16/08/2023,0000491402,526.30,Revenue,LANCS DAF,0
South Ribble Borough Council,http://statistics.data.gov.uk/id/local-authority/30UE,Central Support Services,Materials General,4040,"nox sensor, Wide angle Mirror, VIN REDACTED, JFC 20510",23/08/2023,0000491414,528.21,Revenue,LANCS DAF,0
South Ribble Borough Council,http://statistics.data.gov.uk/id/local-authority/30UE,Central Support Services,Materials General,4040,"1 NS step, 1 bumper, 1 light surround, 1 headlight surround VIN REDACTED JFC20540",23/08/2023,0000491510,"1,218.78",Revenue,LANCS DAF,0
South Ribble Borough Council,http://statistics.data.gov.uk/id/local-authority/30UE,Central Support Services,Materials General,4040,"1x filter kit, 1x front anti roll bar brushes, 1x second axil anti roll bar brushes, 1x chassis filter, 1x crank breather, VIN REDACTED",30/08/2023,0000491711,510.92,Revenue,LANCS DAF,0
South Ribble Borough Council,http://statistics.data.gov.uk/id/local-authority/30UE,Capital,Cap Contract Payment,C230,"Construction of pocket park at Mounsey Road, Bamber Bridge",02/08/2023,0000490910,"29,091.85",Revenue,LANDSCAPE ENGINEERING LIMITED,0
South Ribble Borough Council,http://statistics.data.gov.uk/id/local-authority/30UE,Capital,Cap Contract Payment,C230,"Path Repairs & Improvements, Worden Park, Leyland",02/08/2023,0000490971,"87,294.85",Revenue,LANDSCAPE ENGINEERING LIMITED,0
South Ribble Borough Council,http://statistics.data.gov.uk/id/local-authority/30UE,Capital,Cap Contract Payment,C230,"Leyland Town Deal - Landscape Architect Professional Fees (Additional Scope Items, RIBA 1-3)",09/08/2023,0000489710,"19,002.50",Revenue,Lanpro Services Ltd,0
South Ribble Borough Council,http://statistics.data.gov.uk/id/local-authority/30UE,Capital,Cap Professional Fees,C210,Leyland Town Deal - Architect (Landscape) Professional Fees - Procurement 3: Public Realm (RIBA 4),09/08/2023,0000490238,"10,000.00",Revenue,Lanpro Services Ltd,0
South Ribble Borough Council,http://statistics.data.gov.uk/id/local-authority/30UE,Capital,Cap Professional Fees,C210,Leyland Town Deal - Architect (Landscape) Professional Fees - Procurement 5: Conversion of Balfour Court & Refurbishment of Leyla,09/08/2023,0000490240,"8,500.00",Revenue,Lanpro Services Ltd,0
South Ribble Borough Council,http://statistics.data.gov.uk/id/local-authority/30UE,Capital,Cap Professional Fees,C210,Leyland Town Deal - Architect (Landscape) Professional Fees - Procurement 4: Construction of BASE2 & Commercial Building A (RIBA ,30/08/2023,0000491230,"1,000.00",Revenue,Lanpro Services Ltd,0
South Ribble Borough Council,http://statistics.data.gov.uk/id/local-authority/30UE,Capital,Cap Professional Fees,C210,Leyland Town Deal - Architect (Landscape) Professional Fees - Procurement 5: Conversion of Balfour Court & Refurbishment of Leyla,30/08/2023,0000491231,"1,700.00",Revenue,Lanpro Services Ltd,0
South Ribble Borough Council,http://statistics.data.gov.uk/id/local-authority/30UE,Capital,Cap Contract Payment,C230,Principal Designer Services - Public Realm RIBA Stages 3-7,30/08/2023,0000491232,"3,000.00",Revenue,Lanpro Services Ltd,0
South Ribble Borough Council,http://statistics.data.gov.uk/id/local-authority/30UE,Capital,Cap Professional Fees,C210,Leyland Town Deal - Architect (Landscape) Professional Fees - Procurement 3: Public Realm (RIBA 4),30/08/2023,0000491233,"2,000.00",Revenue,Lanpro Services Ltd,0
South Ribble Borough Council,http://statistics.data.gov.uk/id/local-authority/30UE,Capital,Cap Professional Fees,C210,Leyland Town Deal - Architect (Landscape) Professional Fees - Procurement 3: Public Realm (RIBA 4),30/08/2023,0000491684,"2,000.00",Revenue,Lanpro Services Ltd,0
South Ribble Borough Council,http://statistics.data.gov.uk/id/local-authority/30UE,Capital,Cap Professional Fees,C210,Leyland Town Deal - Architect (Landscape) Professional Fees - Procurement 5: Conversion of Balfour Court & Refurbishment of Leyla,30/08/2023,0000491686,"1,700.00",Revenue,Lanpro Services Ltd,0
South Ribble Borough Council,http://statistics.data.gov.uk/id/local-authority/30UE,Capital,Cap Professional Fees,C210,Leyland Town Deal - Architect (Landscape) Professional Fees - Procurement 4: Construction of BASE2 & Commercial Building A (RIBA ,30/08/2023,0000491687,"1,000.00",Revenue,Lanpro Services Ltd,0
South Ribble Borough Council,http://statistics.data.gov.uk/id/local-authority/30UE,Central Support Services,Miscellaneous Expenses,4851,Invoice 18530 - Driver Management Fee and Electronic Fee,16/08/2023,0000491236,528.90,Revenue,LICENCE BUREAU LIMITED,0
South Ribble Borough Council,http://statistics.data.gov.uk/id/local-authority/30UE,Capital,Capital Grant,C570,"DFG WORK FOR ADAPTATION FOR RAMP AT ADDRESS REDACTED AS PER SRBC PLANS AND QUOTE SUPPLIED OF 4079.56, TOTAL COST OF GRAN",02/08/2023,0000491032,"4,079.56",Revenue,LTL CONSTRUCTION & MAINTENANCE LTD,0
South Ribble Borough Council,http://statistics.data.gov.uk/id/local-authority/30UE,Capital,Capital Grant,C570,DFG WORK FOR ADAPTATION FOR GF EXTENSION FOR SHOWER AND BEDROOM AND RAMP AT ADDRESS REDACTED AS PER SRBC,09/08/2023,0000491173,"40,000.00",Revenue,LTL CONSTRUCTION & MAINTENANCE LTD,0
South Ribble Borough Council,http://statistics.data.gov.uk/id/local-authority/30UE,Open Spaces,Materials General,4040,"40 Ton of grade 1 top soil , (20 Ton for Worden Park Pitches and 20 Ton for Pennyholme)",02/08/2023,0000490839,"1,080.00",Revenue,M C & M A STEWART HAULAGE LTD,0
South Ribble Borough Council,http://statistics.data.gov.uk/id/local-authority/30UE,Central Support Services,Materials General,4040,BLACK SACKS `KEEP SOUTH RIBBLE TIDY` in white-455x760x990-250g Bi Modal Super plus - Keep South Ribble Tidy,23/08/2023,0000491572,"7,080.00",Revenue,MacFarlane Group UK Limited,0
South Ribble Borough Council,http://statistics.data.gov.uk/id/local-authority/30UE,Capital,Capital Grant,C570,DFG WORKS FOR LEVEL ACCESS BATHROOM AT ADDRESS REDACTED NEW PROGRESS PROPERTY SO 50% OF TOTAL QUOTE TO BE PAID TOTAL QUO,02/08/2023,0000491033,"3,283.94",Revenue,MAHONEY CONTRACTORS LTD,0
South Ribble Borough Council,http://statistics.data.gov.uk/id/local-authority/30UE,Capital,Capital Grant,C570,DFG WORKS FOR LEVEL ACCESS SHOWER AT ADDRESS REDACTED AS PER SRBC PLANS AND QUOTE SUPPLIED OF 6091.72.NEW PROGRESS PROPERTY SO 5,09/08/2023,0000491165,"3,045.72",Revenue,MAHONEY CONTRACTORS LTD,0
South Ribble Borough Council,http://statistics.data.gov.uk/id/local-authority/30UE,Parking Services,Materials General,4040,"X1 ENNERDALE CLOSE T, X2 EDWARD STREET T, X2 WOODLANDS AVENUE, X1 FOSTER CROFT, X2 BEE LANE, X1 BANNISTER DRIVE, X1 MOOR AVENUE 2",09/08/2023,0000491225,"1,902.50",Revenue,Main Street Signs Ltd,0
South Ribble Borough Council,http://statistics.data.gov.uk/id/local-authority/30UE,Open Spaces,External Contractors Charges,4570,Supply and apply weed and feed to football pitches and grass areas in South Ribble,02/08/2023,0000491034,"4,386.00",Revenue,Maple Contracting Ltd T/A Complete Weed Control,0
South Ribble Borough Council,http://statistics.data.gov.uk/id/local-authority/30UE,Central Support Services,Improvements to Premises,2023,"Internal Remodelling to Form a New Council Chamber at The Civic Centre, Leyland, , Based on the above we anticipate our scope of ",02/08/2023,0000490698,650.00,Revenue,Marston & Grundy LLP,0
South Ribble Borough Council,http://statistics.data.gov.uk/id/local-authority/30UE,Open Spaces,GM Refurbishment,4657,"4m3 of C35 concrete delivered to Worden Park, Leyland, PR25 3DH",02/08/2023,0000490840,648.00,Revenue,MOORE READYMIX,0
South Ribble Borough Council,http://statistics.data.gov.uk/id/local-authority/30UE,Community Development,Miscellaneous Expenses,4851,Items required for school uniform pop up shop as discussed and agreed with NAME REDACTED,16/08/2023,0000491481,913.22,Revenue,Morplan Ltd,0
South Ribble Borough Council,http://statistics.data.gov.uk/id/local-authority/30UE,Economic Development,Grants Voluntary Organisation,4711,BEE Scheme Primary Teaching,16/08/2023,0000491518,"2,000.00",Revenue,Mr Andrew Bradley,0
South Ribble Borough Council,http://statistics.data.gov.uk/id/local-authority/30UE,Central Support Services,External Contractors Charges,4570,Service Contract Q2200/SRC/PB,16/08/2023,0000491153,"1,830.00",Revenue,MRB Workshop Services Ltd,0
South Ribble Borough Council,http://statistics.data.gov.uk/id/local-authority/30UE,Central Support Services,Materials General,4040,UNDERRUN SENSOR 5044512 BIN G024,16/08/2023,0000491430,658.93,Revenue,MRD Parts LTD,0
South Ribble Borough Council,http://statistics.data.gov.uk/id/local-authority/30UE,Homelessness,Temporary Accommodation,5311,"CW - family room - 10 nights - 671.50, , ...., , YA - twin rooms - 10 nights - 598.75, , ...., , FT - twin room - 10 nights - �",02/08/2023,0000490987,"10,086.50",Revenue,National Hotel Rooms Ltd t/a Purple Roomz,0
South Ribble Borough Council,http://statistics.data.gov.uk/id/local-authority/30UE,Development Control,Advertising,4841,Press notices for planning applications April 23 to March 24,23/08/2023,0000491174,"1,160.64",Revenue,National World Publishing Limited,0
South Ribble Borough Council,http://statistics.data.gov.uk/id/local-authority/30UE,Development Control,Advertising,4841,Press notices for planning applications April 23 to March 24,23/08/2023,0000491505,"1,071.36",Revenue,National World Publishing Limited,0
South Ribble Borough Council,http://statistics.data.gov.uk/id/local-authority/30UE,Central Support Services,External Contractors Charges,4570,"collection & disposal of an ibc containing water c/w diesel, 655.00 +vat",16/08/2023,0000491433,655.00,Revenue,NEALES WASTE MANAGEMENT,0
South Ribble Borough Council,http://statistics.data.gov.uk/id/local-authority/30UE,Community Development,Core Fund,4861,"Support for Longton Live 2023 both before, during and after the two day event.",02/08/2023,0000490924,"1,500.00",Revenue,Nigel Stewart,0
South Ribble Borough Council,http://statistics.data.gov.uk/id/local-authority/30UE,Open Spaces,Materials General,4040,20X 5l OF Conqueror @ 76.85 per 5L,23/08/2023,0000491448,"1,537.00",Revenue,NOMIX ENVIRO LTD,0
South Ribble Borough Council,http://statistics.data.gov.uk/id/local-authority/30UE,Parking Services,Parking Attendants,4514,"Variable Fee Car Park Enforcement , JULY 2023 - Variable Recharge Items",09/08/2023,0000491185,"2,162.00",Revenue,NSL LTD,0
South Ribble Borough Council,http://statistics.data.gov.uk/id/local-authority/30UE,Capital,Capital Grant,C570,DFG WORK FOR ADAPTATION FOR LEVEL ACCESS SHOWER AT NAME REDACTED AS PER SRBC PLANS AND QUOTE SUPPLIED OF 5500.,02/08/2023,0000491037,"5,500.00",Revenue,Paul Rothwell and Sons,0
South Ribble Borough Council,http://statistics.data.gov.uk/id/local-authority/30UE,Central Support Services,Reactive Repair & Maintenance,2020,Flooring to uplift and make good Existing floor (Screed) Tackifier and fit new Burmatex carpet tiles to part corridor by staircas,23/08/2023,0000491540,931.15,Revenue,PDP PROPERTY SERVICES LTD,0
South Ribble Borough Council,http://statistics.data.gov.uk/id/local-authority/30UE,Community Development,Miscellaneous Expenses,4851,,02/08/2023,0000491102,500.00,Revenue,Peter Goulding,0
South Ribble Borough Council,http://statistics.data.gov.uk/id/local-authority/30UE,Capital,Consultancy,C259,Jubilee Gardens - RIBA 4 re design (JD/7779F005),30/08/2023,0000491585,"6,800.00",Revenue,Pettit Singleton Associates Ltd,0
South Ribble Borough Council,http://statistics.data.gov.uk/id/local-authority/30UE,Central Support Services,Group life Insurance,1819,"Group Life Assurance Scheme - Deposit Premium 2023, Scheme Number 8519",02/08/2023,0000490274,"5,000.00",Revenue,PHOENIX LIFE LTD,0
South Ribble Borough Council,http://statistics.data.gov.uk/id/local-authority/30UE,Central Support Services,Software Licensing,4243,Adobe Pro Licenses,02/08/2023,0000490156,"3,333.00",Revenue,PHOENIX SOFTWARE LTD,0
South Ribble Borough Council,http://statistics.data.gov.uk/id/local-authority/30UE,Central Support Services,Rental,4012,"2023 / 2024 annual contract for the provision of sanitary services to the Civic Centre as per your ref 105796	, , to include duty",16/08/2023,0000491496,"1,264.14",Revenue,PHS GROUP PLC,0
South Ribble Borough Council,http://statistics.data.gov.uk/id/local-authority/30UE,Central Support Services,Agency Staff,1121,Enforcement consultancy services,09/08/2023,0000490994,"1,026.00",Revenue,Planning Control & PACE Solutions,0
South Ribble Borough Council,http://statistics.data.gov.uk/id/local-authority/30UE,Central Support Services,Agency Staff,1121,Enforcement consultant NAME REDACTED,09/08/2023,0000491092,"1,064.00",Revenue,Planning Control & PACE Solutions,0
South Ribble Borough Council,http://statistics.data.gov.uk/id/local-authority/30UE,Open Spaces,GM Refurbishment,4657,"New cable(25m), truck and tyres as per quotation ref. 12074.",02/08/2023,0000490843,"1,266.80",Revenue,PLAY & LEISURE LTD,0
South Ribble Borough Council,http://statistics.data.gov.uk/id/local-authority/30UE,Democratic Represent and  Mgnt,Conference & Training Hotel Accommodatio,4632,Accommodation & Breakfast,02/08/2023,0000488250,640.00,Revenue,Premier Inn Business Account,0
South Ribble Borough Council,http://statistics.data.gov.uk/id/local-authority/30UE,Central Support Services,Paper Bulk,4133,"A4 Evolution Everyday 80gms paper, 40 Boxes",30/08/2023,0000491641,991.00,Revenue,PREMIER PAPER GROUP LTD,0
South Ribble Borough Council,http://statistics.data.gov.uk/id/local-authority/30UE,Homelessness,Void Loss,5313,"Purchase order for Progress Housing Group to pay for interim void rent loss., , Interim Void Rent Loss Charges are:, , Quarter 4 ",23/08/2023,0000491635,"2,484.51",Revenue,PROGRESS HOUSING GRP ref:DNSOU001,0
South Ribble Borough Council,http://statistics.data.gov.uk/id/local-authority/30UE,Economic Development,Partnership,485I,"Services, Development/Support block: 20 hours, Publication of Community Wealth Building Pages included",09/08/2023,0000490281,640.00,Revenue,PROTEAN SYSTEMS LIMITED,0
South Ribble Borough Council,http://statistics.data.gov.uk/id/local-authority/30UE,Short Term Creditors,Amount Paid,0030,Prudential - July 23 Deductions from Payroll,23/08/2023,0000491664,605.00,Revenue,Prudential,0
South Ribble Borough Council,http://statistics.data.gov.uk/id/local-authority/30UE,Short Term Creditors,Amount Paid,0030,Prudential SS - July 23 Deductions from Payroll,23/08/2023,0000491665,"4,966.51",Revenue,Prudential,0
South Ribble Borough Council,http://statistics.data.gov.uk/id/local-authority/30UE,Short Term Creditors,Amount Paid,0030,Prudential - August 23 Deductions from Payroll,30/08/2023,0000491788,"1,105.00",Revenue,Prudential,0
South Ribble Borough Council,http://statistics.data.gov.uk/id/local-authority/30UE,Short Term Creditors,Amount Paid,0030,Prudential SS - August 23 Deductions from Payroll,30/08/2023,0000491789,"5,616.51",Revenue,Prudential,0
South Ribble Borough Council,http://statistics.data.gov.uk/id/local-authority/30UE,Surplus or Deficit on Trading,Reactive Repair & Maintenance,2020,"Attend Worden Park Bru house. Fit new fire door and casing to ground floor entrance. Style and quality as existing, re-use origin",02/08/2023,0000490899,"1,100.00",Revenue,PSR & Sons Joiners & Building Contractors,0
South Ribble Borough Council,http://statistics.data.gov.uk/id/local-authority/30UE,Surplus or Deficit on Trading,Reactive Repair & Maintenance,2020,"Boxer Place 17 A & B, Remove Wall & Joinery Works, , ITEM 1 - WALL, �	To carefully cut out Stud partition Wall and Door set and T",30/08/2023,0000491192,"1,450.00",Revenue,PSR & Sons Joiners & Building Contractors,0
South Ribble Borough Council,http://statistics.data.gov.uk/id/local-authority/30UE,Surplus or Deficit on Trading,Reactive Repair & Maintenance,2020,"Toilets on Worden Park (Playground) as per NAME REDACTED request , , To Board over opening Make Template and Measure for new Glass., , To ",09/08/2023,0000491193,900.00,Revenue,PSR & Sons Joiners & Building Contractors,0
South Ribble Borough Council,http://statistics.data.gov.uk/id/local-authority/30UE,Regulatory Services,Reactive Repair & Maintenance,2020,"Bamber Bridge Public Toilets: as per NAME REDACTED request , , To Apply Patch Plaster to toilet cubical areas. , To cut back Roof Tiles an",09/08/2023,0000491194,"1,100.00",Revenue,PSR & Sons Joiners & Building Contractors,0
South Ribble Borough Council,http://statistics.data.gov.uk/id/local-authority/30UE,Surplus or Deficit on Trading,Reactive Repair & Maintenance,2020,"Manufacture and install new casing to suite using the same section size timber as existing design on site. , Manufacture and inst",23/08/2023,0000491449,"2,000.00",Revenue,PSR & Sons Joiners & Building Contractors,0
South Ribble Borough Council,http://statistics.data.gov.uk/id/local-authority/30UE,Central Support Services,Consultancy Fees,4541,"H & S Consultancy support 18th February 2023 to 17th February 2024., 24hrs per month @ 45 per hour 12,960",30/08/2023,0000491462,"3,240.00",Revenue,QHS SOLUTIONS,0
South Ribble Borough Council,http://statistics.data.gov.uk/id/local-authority/30UE,Open Spaces,GM Refurbishment,4657,5T excavator and 6T dumper for Worden Park delivered 20.06.23,02/08/2023,0000490379,565.80,Revenue,Readyplant Limited,0
South Ribble Borough Council,http://statistics.data.gov.uk/id/local-authority/30UE,Capital,Cap Contract Payment,C230,Leyland Town Deal - Land referencing,30/08/2023,0000491685,"5,000.00",Revenue,Roger Hannah Ltd,0
South Ribble Borough Council,http://statistics.data.gov.uk/id/local-authority/30UE,Regulatory Services,Poisons & Baits,4041,To suplly and fit anti-roosting bird spikes to the 4 clocks in Preston Bus Station and clean all bulk bird fouling using a scisso,30/08/2023,0000490912,837.78,Revenue,Rokill Ltd,0
South Ribble Borough Council,http://statistics.data.gov.uk/id/local-authority/30UE,Recreation & Sport,Professional Fees,4510,"DFTH Roadshows - end of Summer Term 2 - 2023, Singing Princess @ 275 / day, x4 days, Total = 1,100 no VAT",09/08/2023,0000491149,"1,100.00",Revenue,Royal Princess Parties UK,0
South Ribble Borough Council,http://statistics.data.gov.uk/id/local-authority/30UE,Central Support Services,Materials General,4040,"Supply replacement low level Omnidel Lift, VIN REDACTED, Jfc-20444",09/08/2023,0000491146,"2,500.00",Revenue,RTS Muni,0
South Ribble Borough Council,http://statistics.data.gov.uk/id/local-authority/30UE,Community Development,Miscellaneous Expenses,4851,,02/08/2023,0000491100,500.00,Revenue,Salim Malek,0
South Ribble Borough Council,http://statistics.data.gov.uk/id/local-authority/30UE,Community Development,Miscellaneous Expenses,4851,,02/08/2023,0000491106,500.00,Revenue,Sally McDonald,0
South Ribble Borough Council,http://statistics.data.gov.uk/id/local-authority/30UE,Short Term Debtors,Amount Paid,0030,To supply continued Commercial Estates support for the Test Track mixed use development as per NAME REDACTED for 2 years From Apr,02/08/2023,0000490990,933.33,Revenue,Sanderson Weatherall LLP,0
South Ribble Borough Council,http://statistics.data.gov.uk/id/local-authority/30UE,Central Support Services,External Contractors Charges,4570,To cover Civic Centre 6 Hrs x 25 at 13.97 per hour until end of July 2023 1700 - 2000 hrs as per order ack 33051 dated 12th Apri,02/08/2023,0000490874,502.92,Revenue,SECTOR SECURITY SERVICES LTD,0
South Ribble Borough Council,http://statistics.data.gov.uk/id/local-authority/30UE,Capital,Cap Contract Payment,C230,External Access Road Repair works Planned works.,16/08/2023,0000490904,"5,297.16",Revenue,Singleton & Smart Ltd,0
South Ribble Borough Council,http://statistics.data.gov.uk/id/local-authority/30UE,Short Term Creditors,Amount Paid,0030,Liberal Dem - July 23 Deductions from Payroll,23/08/2023,0000491663,598.25,Revenue,SOUTH RIBBLE CONSERVATIVE FUND,0
South Ribble Borough Council,http://statistics.data.gov.uk/id/local-authority/30UE,Short Term Creditors,Amount Paid,0030,Labour Councillors - July 23 Deductions from Payroll,23/08/2023,0000491662,"1,890.98",Revenue,SOUTH RIBBLE LABOUR PARTY LOCAL GOVERNM,0
South Ribble Borough Council,http://statistics.data.gov.uk/id/local-authority/30UE,Short Term Creditors,Amount Paid,0030,Labour Councillors - August 23 Deductions from Payroll,30/08/2023,0000491786,"1,663.04",Revenue,SOUTH RIBBLE LABOUR PARTY LOCAL GOVERNM,0
South Ribble Borough Council,http://statistics.data.gov.uk/id/local-authority/30UE,Elections,Polling Count Costs,4424,"Hire of South RIbble Tennis Centre, 4th & 5th May 2023, for the purpose of the Election Count",23/08/2023,0000489575,"3,823.60",Revenue,South Ribble Leisure Ltd,0
South Ribble Borough Council,http://statistics.data.gov.uk/id/local-authority/30UE,Elections,Polling Centre Costs,4421,"Use of the venue for the Borough, Town & Parish Elections on 4 May 2023. , , Access will be required on the day from 6.15am to 10",23/08/2023,0000489575,660.00,Revenue,South Ribble Leisure Ltd,0
South Ribble Borough Council,http://statistics.data.gov.uk/id/local-authority/30UE,Short Term Creditors,Amount Received,0140,income transfer,16/08/2023,0000491295,"80,967.81",Revenue,South Ribble Leisure Ltd,0
South Ribble Borough Council,http://statistics.data.gov.uk/id/local-authority/30UE,Recreation & Sport,Professional Fees,4510,"tennis coaches for lancashire county finals , 650",09/08/2023,0000491323,650.00,Revenue,South Ribble Leisure Ltd,0
South Ribble Borough Council,http://statistics.data.gov.uk/id/local-authority/30UE,Recreation & Sport,Gas,2304,27/4 to 24/7/23,02/08/2023,0000491094,"1,340.44",Revenue,SSE 271850110 Moss Side CC Dunkirk Hall,0
South Ribble Borough Council,http://statistics.data.gov.uk/id/local-authority/30UE,Capital,Cap Contract Payment,C230,1/4 to 30/4/23,02/08/2023,0000488985,767.33,Revenue,SSE SCOTTISH HYDRO ELECTRIC,0
South Ribble Borough Council,http://statistics.data.gov.uk/id/local-authority/30UE,Capital,Cap Contract Payment,C230,"NFM Iddon, Quinn street",02/08/2023,0000490133,786.07,Revenue,SSE SCOTTISH HYDRO ELECTRIC,0
South Ribble Borough Council,http://statistics.data.gov.uk/id/local-authority/30UE,Capital,Cap Contract Payment,C230,1/6 to 23/6/23,02/08/2023,0000490961,583.21,Revenue,SSE SCOTTISH HYDRO ELECTRIC,0
South Ribble Borough Council,http://statistics.data.gov.uk/id/local-authority/30UE,Service Management & Support,Gas Oil,3134,2500l Gas Oil @ 69.38ppl,02/08/2023,0000490991,"1,826.75",Revenue,Standard Fuel Oils LtdMain,0
South Ribble Borough Council,http://statistics.data.gov.uk/id/local-authority/30UE,Service Management & Support,Diesel Fuel,3132,"17000 Ltrs Diesel @ 112.10ppl into the , feeder tank at ADDRESS REDACTED , Side key for cabinet is available from the , ",02/08/2023,0000490992,"19,422.20",Revenue,Standard Fuel Oils LtdMain,0
South Ribble Borough Council,http://statistics.data.gov.uk/id/local-authority/30UE,Capital,Capital Grant,C570,"DFG WORK TO SUPPLY AND INSTALL A STAIRLIFT AT  ADDRESS REDACTED AS PER QUOTE SUPPLIED OF 3144.00, TOTAL C",09/08/2023,0000491176,"3,144.00",Revenue,Stannah Lift Services Ltd,0
South Ribble Borough Council,http://statistics.data.gov.uk/id/local-authority/30UE,Capital,Misc Capital Payments,C234,purchase of greens dance centre,30/08/2023,0000491677,"155,000.00",Revenue,Steven Green and Denise Green,0
South Ribble Borough Council,http://statistics.data.gov.uk/id/local-authority/30UE,Community Development,Miscellaneous Expenses,4851,,02/08/2023,0000491103,500.00,Revenue,Susan Hobson,0
South Ribble Borough Council,http://statistics.data.gov.uk/id/local-authority/30UE,Open Spaces,GM Refurbishment,4657,For the supply only of a Back to Back Roundabout(SWD170) as per quotation ref. 4902183A.,02/08/2023,0000490846,"1,962.00",Revenue,SUTCLIFFE PLAY LTD,0
South Ribble Borough Council,http://statistics.data.gov.uk/id/local-authority/30UE,Community Development,Miscellaneous Expenses,4851,,02/08/2023,0000491104,500.00,Revenue,Tabitha Haliwell,0
South Ribble Borough Council,http://statistics.data.gov.uk/id/local-authority/30UE,Central Support Services,Legal,4821,Procurement: ProContract subscription license fee for Year 1  31st July 2023  30th July 2024,09/08/2023,0000491012,"2,310.00",Revenue,TET Limited t/a Trans European Technology,0
South Ribble Borough Council,http://statistics.data.gov.uk/id/local-authority/30UE,Community Development,Miscellaneous Expenses,4851,PA systems for Longton Live 2023,02/08/2023,0000490925,"3,500.00",Revenue,The Creative Network,0
South Ribble Borough Council,http://statistics.data.gov.uk/id/local-authority/30UE,Central Support Services,Network and Security,4247,"100mb circuit South Ribble Borough Council , PR25 1DH to Leyland Market, Northcoat Street , PR25 2AA, (ONEA947609), Annual Rental",02/08/2023,0000489756,"2,658.37",Revenue,The Networking People (TNP) Ltd,0
South Ribble Borough Council,http://statistics.data.gov.uk/id/local-authority/30UE,Tourism,Electricity,2303,1/7 to 31/7/23,16/08/2023,0000491379,"1,504.29",Revenue,Total Gas & Power (Elec) 3006014935 - Worden Hall,0
South Ribble Borough Council,http://statistics.data.gov.uk/id/local-authority/30UE,Central Support Services,Electricity,2303,1/7 to 31/7/23,16/08/2023,0000491381,"2,582.83",Revenue,Total Gas & Power (Elec) 3006014946 - Civic Centre,0
South Ribble Borough Council,http://statistics.data.gov.uk/id/local-authority/30UE,Central Support Services,Electricity,2303,1/7 to 31/7/23,16/08/2023,0000491382,"2,699.70",Revenue,Total Gas & Power (Elec) 3006014957 - Moss Side De,0
South Ribble Borough Council,http://statistics.data.gov.uk/id/local-authority/30UE,Central Support Services,Electricity,2303,Garage Hurst Grange,23/08/2023,0000491615,661.30,Revenue,Total Gas & Power (Elec) 3006031666 - Gregson Lane,0
South Ribble Borough Council,http://statistics.data.gov.uk/id/local-authority/30UE,Open Spaces,Electricity,2303,1/6 to 31/7/23,16/08/2023,0000491389,665.15,Revenue,Total Gas & Power (Elec) 3006031776 - Worden Park,0
South Ribble Borough Council,http://statistics.data.gov.uk/id/local-authority/30UE,Open Spaces,Electricity,2303,1/5 to 31/7/23,16/08/2023,0000491391,649.84,Revenue,Total Gas & Power (Elec) 3006031820 - King George,0
South Ribble Borough Council,http://statistics.data.gov.uk/id/local-authority/30UE,Economic Development,Gas,2304,Market Hall,23/08/2023,0000491608,529.11,Revenue,Total Gas & Power (Gas) 3006046230 - Leyland Marke,0
South Ribble Borough Council,http://statistics.data.gov.uk/id/local-authority/30UE,Community Development,Miscellaneous Expenses,4851,,02/08/2023,0000491105,500.00,Revenue,Tracey Thom,0
South Ribble Borough Council,http://statistics.data.gov.uk/id/local-authority/30UE,Economic Development,Professional Fees,4510,Work agreed to support major projects,09/08/2023,0000488447,"10,500.00",Revenue,Trebbi Continuum Limited,0
South Ribble Borough Council,http://statistics.data.gov.uk/id/local-authority/30UE,Economic Development,Professional Fees,4510,Work agreed to support major projects,09/08/2023,0000490603,"15,050.00",Revenue,Trebbi Continuum Limited,0
South Ribble Borough Council,http://statistics.data.gov.uk/id/local-authority/30UE,Economic Development,Professional Fees,4510,Work agreed to support major projects,09/08/2023,0000490928,"14,600.00",Revenue,Trebbi Continuum Limited,0
South Ribble Borough Council,http://statistics.data.gov.uk/id/local-authority/30UE,Central Support Services,External Contractors Charges,4570,Truck Tyre Maintenance July 2023,16/08/2023,0000491399,"4,264.10",Revenue,Tructyre Fleet Management Ltd,0
South Ribble Borough Council,http://statistics.data.gov.uk/id/local-authority/30UE,Central Support Services,UK Healthcare,1710,SRBC Health care,16/08/2023,0000491134,"1,587.00",Revenue,UK healthcare (BDHSC),0
South Ribble Borough Council,http://statistics.data.gov.uk/id/local-authority/30UE,Community Development,Miscellaneous Expenses,4851,To provide security on 14 and 15 July 2023 for Longton Live as per quote QU-0326 and as discussed and agreed,16/08/2023,0000490853,648.00,Revenue,UK Media & Events Security Limited,0
South Ribble Borough Council,http://statistics.data.gov.uk/id/local-authority/30UE,Economic Development,Professional Fees,4510,SIA trained staff for Battle of Bamber Bridge,16/08/2023,0000491434,648.00,Revenue,UK Media & Events Security Limited,0
South Ribble Borough Council,http://statistics.data.gov.uk/id/local-authority/30UE,Short Term Creditors,Amount Paid,0030,Unison - July 23 Deductions from Payroll,23/08/2023,0000491660,"1,799.55",Revenue,Unison,0
South Ribble Borough Council,http://statistics.data.gov.uk/id/local-authority/30UE,Short Term Creditors,Amount Paid,0030,Unison - August 23 Deductions from Payroll,30/08/2023,0000491784,"1,758.95",Revenue,Unison,0
South Ribble Borough Council,http://statistics.data.gov.uk/id/local-authority/30UE,Community Development,Miscellaneous Expenses,4851,,02/08/2023,0000491101,500.00,Revenue,Vasco Wackrill,0
South Ribble Borough Council,http://statistics.data.gov.uk/id/local-authority/30UE,Culture & Heritage,Miscellaneous Expenses,4851,"Worden-Build Cleaning Works- Cleaning Works to all areas inclusive of deep clean of floor area, all glazing to be cleaned down le",30/08/2023,0000491543,"2,025.00",Revenue,Veida Contracting Ltd,0
South Ribble Borough Council,http://statistics.data.gov.uk/id/local-authority/30UE,Economic Development,Public Relations Strategy,4848,Discover South Ribble support,09/08/2023,0000491170,"3,153.33",Revenue,VIVA PR Limited,0
South Ribble Borough Council,http://statistics.data.gov.uk/id/local-authority/30UE,Central Support Services,Agency Staff,1121,Fees for NAME REDACTED,02/08/2023,0000487583,"3,200.00",Revenue,Vivid Resourcing,0
South Ribble Borough Council,http://statistics.data.gov.uk/id/local-authority/30UE,Central Support Services,Agency Staff,1121,Consultant Planning Officer NAME REDACTED,09/08/2023,0000490993,"1,929.38",Revenue,Vivid Resourcing,0
South Ribble Borough Council,http://statistics.data.gov.uk/id/local-authority/30UE,Central Support Services,Government Connect,4212,01 jul 2023,16/08/2023,0000491455,"1,076.43",Revenue,VODAFONE RE:CABLE & WIRELESS UK,0
South Ribble Borough Council,http://statistics.data.gov.uk/id/local-authority/30UE,Central Support Services,Government Connect,4212,01 Apr 2023,23/08/2023,0000491456,"1,076.43",Revenue,VODAFONE RE:CABLE & WIRELESS UK,0
South Ribble Borough Council,http://statistics.data.gov.uk/id/local-authority/30UE,Central Support Services,Government Connect,4212,01 Aug 2023,16/08/2023,0000491457,"2,404.20",Revenue,VODAFONE RE:CABLE & WIRELESS UK,0
South Ribble Borough Council,http://statistics.data.gov.uk/id/local-authority/30UE,Central Support Services,Water Charges(Metered),2511,surface,02/08/2023,0000490949,"2,215.29",Revenue,WaterPlus 4080412513 Unit 81 Bison Place,0
South Ribble Borough Council,http://statistics.data.gov.uk/id/local-authority/30UE,Central Support Services,Water Charges(Metered),2511,surface,30/08/2023,0000491735,"2,436.81",Revenue,WaterPlus 4080412513 Unit 81 Bison Place,0
South Ribble Borough Council,http://statistics.data.gov.uk/id/local-authority/30UE,Open Spaces,Water Charges(Metered),2511,water,02/08/2023,0000490950,748.06,Revenue,WaterPlus 4191231371 Worden Park,0
South Ribble Borough Council,http://statistics.data.gov.uk/id/local-authority/30UE,Open Spaces,Water Charges(Metered),2511,use,02/08/2023,0000490950,508.07,Revenue,WaterPlus 4191231371 Worden Park,0
South Ribble Borough Council,http://statistics.data.gov.uk/id/local-authority/30UE,Central Support Services,Other Fees,4520,Mail for 2023/4,09/08/2023,0000491097,897.62,Revenue,WHISTL  UK LTD,0
South Ribble Borough Council,http://statistics.data.gov.uk/id/local-authority/30UE,Central Support Services,Other Fees,4520,Mail for 2023/4,09/08/2023,0000491296,536.81,Revenue,WHISTL  UK LTD,0
South Ribble Borough Council,http://statistics.data.gov.uk/id/local-authority/30UE,Central Support Services,Planned Annual Repair & Maintenance,2021,Visual Design Services for The Civic Centre New Council Chambers as per NAME REDACTED,02/08/2023,0000491055,"1,687.50",Revenue,Wilson Mason LLP,0
South Ribble Borough Council,http://statistics.data.gov.uk/id/local-authority/30UE,Capital,Capital Grant,C570,DFG WORKS FOR LEVEL ACCESS SHOWER AT ADDRESS REDACTED AS PER SRBC PLANS AND QUOTE SUPPLIED OF 6184.00- YHG PROPERTY SO 5,09/08/2023,0000491175,"3,092.00",Revenue,Wright Build Limited,0
